[Event "56th Rubinstein Memorial A 2020"]
[Site "Polanica Zdroj"]
[Date "2020.08.20"]
[Round "6.9"]
[White "Kucza, Karol"]
[Black "Majocha, Piotr"]
[Result "1-0"]
[ECO "C18"]
[WhiteElo "2245"]
[BlackElo "1906"]
[Annotator "ChessBase"]
[PlyCount "75"]
[EventDate "2020.08.15"]
[EventType "swiss"]
[EventCountry "POL"]
[SourceTitle "playchess.com"]
[Source "ChessBase"]
[SourceQuality "1"]
[TimeControl "40/5400+30:1800+30"]

1. e4 {[%emt 0:00:00]} e6 {[%emt 0:00:00]} 2. d4 {[%emt 0:00:00]} d5 {[%emt 0:00:00]} 3. Nc3 {[%emt 0:00:00]} Bb4 {[%emt 0:00:00]} 4. e5 {[%emt 0:00:00]} c5 {[%emt 0:00:00]} 5. a3 {[%emt 0:00:00]} Bxc3+ {[%emt 0:00:00]} 6. bxc3 {[%emt 0:00:00]} Ne7 {[%emt 0:00:06]} 7. Qg4 {[%emt 0:00:00]} O-O {[%emt 0:00:25]} 8. Bd3 {[%emt 0:00:06]} Nbc6 {[%emt 0:00:24]} 9. Nf3 {[%emt 0:00:07]} f5 {[%emt 0:00:09]} 10. Qg3 {[%emt 0:00:05]} Bd7 {[%emt 0:16:42]} 11. h4 {[%emt 0:00:24]} Kh8 {[%emt 0:02:49]} 12. h5 {[%emt 0:00:08]} Qa5 {[%emt 0:11:35]} 13. h6 {[%emt 0:09:33]} g6 {[%emt 0:00:11]} 14. Bd2 {[%emt 0:00:10]} Qa4 {[%emt 0:10:09]} 15. dxc5 {[%emt 0:09:29]} Qa5 {[%emt 0:05:55]} 16. O-O {[%emt 0:05:56]} Qxc5 {[%emt 0:16:18]} 17. Rfb1 {[%emt 0:01:11]} Nd8 {[%emt 0:01:16]} 18. Qh4 {[%emt 0:04:18]} Ng8 {[%emt 0:08:57]} 19. c4 {[%emt 0:01:23]} a5 {[%emt 0:00:26]} 20. Be3 {[%emt 0:02:53]} Qc7 {[%emt 0:01:00]} 21. cxd5 {[%emt 0:06:09]} exd5 {[%emt 0:00:05]} 22. Bb6 {[%emt 0:19:03]} Qc6 {[%emt 0:02:44]} 23. Nd4 {[%emt 0:05:15]} Qc8 {[%emt 0:00:08]} 24. e6 {[%emt 0:02:28]} Bxe6 {[%emt 0:00:07]} 25. Bxd8 {[%emt 0:01:35]} Rxd8 {[%emt 0:00:06]} 26. Qf4 {[%emt 0:00:13]} Rf8 {[%emt 0:03:49]} 27. Qe5+ {[%emt 0:00:21]} Rf6 {[%emt 0:00:03]} 28. Rb6 {[%emt 0:00:21]} Qc3 {[%emt 0:01:33]} 29. Re1 {[%emt 0:00:55]} Re8 {[%emt 0:01:06]} 30. Rxe6 {[%emt 0:01:50]} Rexe6 {[%emt 0:00:06]} 31. Nxe6 {[%emt 0:00:07]} Qxe5 {[%emt 0:00:03]} 32. Rxe5 {[%emt 0:00:08]} Nxh6 {[%emt 0:00:08]} 33. Nd4 {[%emt 0:01:27]} Rd6 {[%emt 0:01:03]} 34. Re7 {[%emt 0:01:26]} b6 {[%emt 0:00:18]} 35. f3 {[%emt 0:00:08]} Ng8 {[%emt 0:00:28]} 36. Rb7 {[%emt 0:01:19]} Nf6 {[%emt 0:00:31]} 37. Rb8+ {[%emt 0:00:39]} Ng8 {[%emt 0:00:36]} 38. Kf2 {[%emt 0:00:27]} 1-0

[Event "56th Rubinstein Memorial A 2020"]
[Site "Polanica Zdroj"]
[Date "2020.08.20"]
[Round "6.10"]
[White "Hasterok, Mateusz"]
[Black "Bronowicki, Mateusz"]
[Result "0-1"]
[ECO "A40"]
[WhiteElo "2056"]
[BlackElo "2275"]
[Annotator "ChessBase"]
[PlyCount "54"]
[EventDate "2020.08.15"]
[EventType "swiss"]
[EventCountry "POL"]
[SourceTitle "playchess.com"]
[Source "ChessBase"]
[SourceQuality "1"]
[TimeControl "40/5400+30:1800+30"]

1. d4 {[%emt 0:00:00]} g6 {[%emt 0:01:11]} 2. c4 {[%emt 0:00:00]} Bg7 {[%emt 0:01:14]} 3. Nf3 {[%emt 0:00:58]} d6 {[%emt 0:16:21]} 4. g3 {[%emt 0:01:06]} e5 {[%emt 0:07:19]} 5. Nc3 {[%emt 0:02:12]} Nc6 {[%emt 0:01:41]} 6. d5 {[%emt 0:02:24]} Nce7 {[%emt 0:01:19]} 7. Bg2 {[%emt 0:00:59]} f5 {[%emt 0:02:44]} 8. O-O {[%emt 0:00:48]} Nf6 {[%emt 0:00:28]} 9. Ne1 {[%emt 0:00:31]} O-O {[%emt 0:01:14]} 10. e4 {[%emt 0:00:24]} Nxe4 {[%emt 0:03:50]} 11. Nxe4 {[%emt 0:00:18]} fxe4 {[%emt 0:00:02]} 12. Bxe4 {[%emt 0:00:28]} Bh3 {[%emt 0:05:37]} 13. Ng2 {[%emt 0:05:06]} Nf5 {[%emt 0:03:42]} 14. Re1 {[%emt 0:03:22]} Qd7 {[%emt 0:03:27]} 15. f4 {[%emt 0:08:25]} Bxg2 {[%emt 0:03:28]} 16. Kxg2 {[%emt 0:12:10]} exf4 {[%emt 0:01:53]} 17. gxf4 {[%emt 0:00:34]} Rae8 {[%emt 0:03:35]} 18. Qc2 {[%emt 0:05:08]} Nh4+ {[%emt 0:15:10]} 19. Kh1 {[%emt 0:01:35]} Qh3 {[%emt 0:01:53]} 20. Qf2 {[%emt 0:08:50]} Bd4 {[%emt 0:06:53]} 21. Qg3 {[%emt 0:01:48]} Rxe4 {[%emt 0:00:22]} 22. Bd2 {[%emt 0:02:41]} Rxe1+ {[%emt 0:01:28]} 23. Rxe1 {[%emt 0:00:17]} Qxg3 {[%emt 0:00:36]} 24. hxg3 {[%emt 0:00:05]} Nf3 {[%emt 0:00:32]} 25. Re2 {[%emt 0:00:06]} Nxd2 {[%emt 0:00:20]} 26. Rxd2 {[%emt 0:00:03]} Bf6 {[%emt 0:00:19]} 27. Re2 {[%emt 0:00:11]} Kf7 {[%emt 0:00:08]} 0-1

[Event "56th Rubinstein Memorial A 2020"]
[Site "Polanica Zdroj"]
[Date "2020.08.20"]
[Round "6.11"]
[White "Balinski, Damian"]
[Black "Fiedorek, Michal"]
[Result "1/2-1/2"]
[ECO "E61"]
[WhiteElo "2136"]
[BlackElo "2212"]
[Annotator "ChessBase"]
[PlyCount "48"]
[EventDate "2020.08.15"]
[EventType "swiss"]
[EventCountry "POL"]
[SourceTitle "playchess.com"]
[Source "ChessBase"]
[SourceQuality "1"]
[TimeControl "40/5400+30:1800+30"]

1. d4 {[%emt 0:00:00]} Nf6 {[%emt 0:00:00]} 2. c4 {[%emt 0:00:00]} g6 {[%emt 0:00:00]} 3. Nc3 {[%emt 0:00:00]} Bg7 {[%emt 0:00:00]} 4. g3 {[%emt 0:00:00]} O-O {[%emt 0:00:12]} 5. Bg2 {[%emt 0:00:00]} d6 {[%emt 0:00:09]} 6. e3 {[%emt 0:00:03]} Re8 {[%emt 0:00:35]} 7. Nge2 {[%emt 0:00:13]} e5 {[%emt 0:00:18]} 8. O-O {[%emt 0:00:24]} e4 {[%emt 0:00:40]} 9. Qc2 {[%emt 0:00:23]} Bf5 {[%emt 0:02:11]} 10. d5 {[%emt 0:15:09]} Qc8 {[%emt 0:02:37]} 11. Re1 {[%emt 0:01:56]} Nbd7 {[%emt 0:08:05]} 12. Nd4 {[%emt 0:05:20]} Ne5 {[%emt 0:09:23]} 13. Nxf5 {[%emt 0:04:19]} Qxf5 {[%emt 0:01:17]} 14. Nxe4 {[%emt 0:11:44]} Nxe4 {[%emt 0:06:22]} 15. Qxe4 {[%emt 0:00:57]} Qxe4 {[%emt 0:00:59]} 16. Bxe4 {[%emt 0:00:04]} Nxc4 {[%emt 0:08:16]} 17. Bg2 {[%emt 0:06:27]} Nxb2 {[%emt 0:07:28]} 18. Bxb2 {[%emt 0:09:11]} Bxb2 {[%emt 0:00:10]} 19. Rab1 {[%emt 0:00:02]} Bc3 {[%emt 0:00:13]} 20. Rec1 {[%emt 0:00:10]} Ba5 {[%emt 0:00:10]} 21. Rxb7 {[%emt 0:02:23]} Bb6 {[%emt 0:02:03]} 22. a4 {[%emt 0:03:51]} Kf8 {[%emt 0:07:14]} 23. Bf1 {[%emt 0:03:15]} Re4 {[%emt 0:02:38]} 24. Bb5 {[%emt 0:01:03]} Rd8 {[%emt 0:25:50]} 1/2-1/2

[Event "56th Rubinstein Memorial A 2020"]
[Site "Polanica Zdroj"]
[Date "2020.08.20"]
[Round "6.12"]
[White "Goraj, Barbara"]
[Black "Praczukowski, Stanislaw"]
[Result "1/2-1/2"]
[ECO "B90"]
[WhiteElo "2099"]
[BlackElo "2132"]
[Annotator "ChessBase"]
[PlyCount "81"]
[EventDate "2020.08.15"]
[EventType "swiss"]
[EventCountry "POL"]
[SourceTitle "playchess.com"]
[Source "ChessBase"]
[SourceQuality "1"]
[TimeControl "40/5400+30:1800+30"]

1. e4 {[%emt 0:00:00]} c5 2. Nf3 {[%emt 0:00:00]} d6 {[%emt 0:00:19]} 3. d4 {[%emt 0:00:05]} cxd4 {[%emt 0:00:06]} 4. Nxd4 {[%emt 0:00:07]} Nf6 {[%emt 0:00:05]} 5. Nc3 {[%emt 0:00:24]} a6 {[%emt 0:00:17]} 6. h3 {[%emt 0:01:08]} e6 {[%emt 0:05:25]} 7. g4 {[%emt 0:01:58]} Nfd7 {[%emt 0:01:01]} 8. Bg2 {[%emt 0:02:14]} Be7 {[%emt 0:04:11]} 9. Be3 {[%emt 0:00:45]} Nc6 {[%emt 0:00:16]} 10. Qe2 {[%emt 0:02:39]} Nde5 {[%emt 0:02:48]} 11. O-O-O {[%emt 0:03:48]} g5 {[%emt 0:07:47]} 12. Kb1 {[%emt 0:38:53]} Rg8 {[%emt 0:04:03]} 13. h4 {[%emt 0:03:08]} h6 {[%emt 0:03:39]} 14. hxg5 {[%emt 0:03:19]} hxg5 {[%emt 0:00:19]} 15. Rh7 {[%emt 0:01:25]} Bd7 {[%emt 0:02:05]} 16. Nb3 {[%emt 0:04:24]} Na5 {[%emt 0:09:16]} 17. f4 {[%emt 0:03:37]} gxf4 {[%emt 0:03:22]} 18. Bxf4 {[%emt 0:00:59]} Nac4 {[%emt 0:02:16]} 19. Nd2 {[%emt 0:05:28]} Qc7 {[%emt 0:10:28]} 20. Nxc4 {[%emt 0:07:46]} Qxc4 {[%emt 0:04:18]} 21. Qe1 {[%emt 0:02:04]} Rf8 {[%emt 0:12:38]} 22. g5 {[%emt 0:01:12]} Qb4 {[%emt 0:01:55]} 23. Bxe5 {[%emt 0:05:45]} dxe5 {[%emt 0:00:24]} 24. g6 {[%emt 0:03:46]} fxg6 {[%emt 0:04:35]} 25. Bh3 {[%emt 0:01:13]} Qc5 {[%emt 0:05:49]} 26. Qg3 {[%emt 0:02:00]} O-O-O {[%emt 0:02:44]} 27. Qxg6 {[%emt 0:00:33]} Kb8 {[%emt 0:03:17]} 28. Qg7 {[%emt 0:01:45]} Bf6 {[%emt 0:01:20]} 29. Qh6 {[%emt 0:00:34]} Bc6 {[%emt 0:01:40]} 30. Rxd8+ {[%emt 0:00:27]} Bxd8 {[%emt 0:00:30]} 31. a3 {[%emt 0:00:40]} Ba5 {[%emt 0:02:59]} 32. Qxe6 {[%emt 0:03:21]} Bxc3 {[%emt 0:00:51]} 33. bxc3 {[%emt 0:00:08]} Rd8 {[%emt 0:01:26]} 34. Qb3 {[%emt 0:00:52]} Bxe4 {[%emt 0:00:43]} 35. Rg7 {[%emt 0:00:30]} Rd2 {[%emt 0:00:39]} 36. Bf5 {[%emt 0:00:23]} Bd5 {[%emt 0:01:23]} 37. Qb4 {[%emt 0:00:27]} Rd1+ {[%emt 0:01:31]} 38. Kb2 {[%emt 0:00:07]} Qe3 {[%emt 0:00:17]} 39. Qd6+ {[%emt 0:00:45]} Ka7 {[%emt 0:00:12]} 40. Rxb7+ {[%emt 0:00:00]} Kxb7 41. Qd7+ 1/2-1/2

[Event "56th Rubinstein Memorial A 2020"]
[Site "Polanica Zdroj"]
[Date "2020.08.20"]
[Round "6.14"]
[White "Luba, Lukasz"]
[Black "Rogacewicz, Mikolaj"]
[Result "1-0"]
[ECO "C02"]
[WhiteElo "2188"]
[BlackElo "1970"]
[Annotator "ChessBase"]
[PlyCount "97"]
[EventDate "2020.08.15"]
[EventType "swiss"]
[EventCountry "POL"]
[SourceTitle "playchess.com"]
[Source "ChessBase"]
[SourceQuality "1"]
[TimeControl "40/5400+30:1800+30"]

1. d4 {[%emt 0:00:00]} e6 {[%emt 0:00:00]} 2. e4 {[%emt 0:00:05]} d5 {[%emt 0:00:00]} 3. e5 {[%emt 0:00:07]} c5 {[%emt 0:00:00]} 4. c3 {[%emt 0:00:05]} Nc6 {[%emt 0:00:14]} 5. f4 {[%emt 0:00:13]} Nh6 {[%emt 0:02:25]} 6. Nf3 {[%emt 0:01:39]} Qb6 {[%emt 0:17:33]} 7. Bd3 {[%emt 0:03:23]} Bd7 {[%emt 0:04:09]} 8. f5 {[%emt 0:08:06]} Nxf5 {[%emt 0:04:54]} 9. Bxf5 {[%emt 0:00:08]} exf5 {[%emt 0:00:35]} 10. O-O {[%emt 0:01:00]} Be6 {[%emt 0:03:02]} 11. Rf2 {[%emt 0:01:31]} Be7 {[%emt 0:05:47]} 12. Be3 {[%emt 0:03:30]} Qd8 {[%emt 0:08:00]} 13. dxc5 {[%emt 0:00:37]} g5 {[%emt 0:00:12]} 14. b4 {[%emt 0:00:59]} g4 {[%emt 0:08:04]} 15. Nd4 {[%emt 0:04:38]} Rg8 {[%emt 0:10:23]} 16. Nxf5 {[%emt 0:02:10]} g3 {[%emt 0:02:07]} 17. hxg3 {[%emt 0:01:15]} Nxe5 {[%emt 0:01:56]} 18. Nxe7 {[%emt 0:02:50]} Qxe7 {[%emt 0:00:50]} 19. Bf4 {[%emt 0:00:22]} Ng4 {[%emt 0:01:29]} 20. Re2 {[%emt 0:00:13]} O-O-O {[%emt 0:08:24]} 21. Qd4 {[%emt 0:01:52]} Qf6 {[%emt 0:04:59]} 22. Nd2 {[%emt 0:01:48]} Qxd4+ {[%emt 0:01:38]} 23. cxd4 {[%emt 0:00:07]} Rg6 {[%emt 0:02:20]} 24. a4 {[%emt 0:01:01]} Nf6 {[%emt 0:01:22]} 25. Ra3 {[%emt 0:04:12]} Rdg8 {[%emt 0:01:08]} 26. Be5 {[%emt 0:02:37]} Nh5 {[%emt 0:02:29]} 27. Nf1 {[%emt 0:01:28]} Rg4 {[%emt 0:01:12]} 28. b5 {[%emt 0:01:42]} Kd7 {[%emt 0:00:45]} 29. Rf3 {[%emt 0:06:45]} Rc8 {[%emt 0:00:54]} 30. a5 {[%emt 0:02:22]} Re4 {[%emt 0:01:18]} 31. Rxe4 {[%emt 0:03:51]} dxe4 {[%emt 0:00:05]} 32. Rf2 {[%emt 0:00:07]} Rg8 {[%emt 0:01:07]} 33. Ne3 {[%emt 0:01:04]} f6 {[%emt 0:02:05]} 34. Bd6 {[%emt 0:00:31]} Rg5 {[%emt 0:01:45]} 35. d5 {[%emt 0:05:11]} Bxd5 {[%emt 0:00:45]} 36. Rd2 {[%emt 0:00:15]} Ke6 {[%emt 0:00:42]} 37. Bf4 {[%emt 0:00:09]} Nxf4 {[%emt 0:01:52]} 38. gxf4 {[%emt 0:00:06]} Rg3 {[%emt 0:00:25]} 39. f5+ {[%emt 0:00:14]} Ke5 {[%emt 0:00:37]} 40. Rxd5+ {[%emt 0:00:00]} Kf4 {[%emt 0:00:00]} 41. Nd1 {[%emt 0:08:29]} Rb3 {[%emt 0:14:38]} 42. c6 {[%emt 0:00:30]} bxc6 {[%emt 0:00:11]} 43. bxc6 {[%emt 0:00:06]} Rb1 {[%emt 0:00:18]} 44. Kf2 {[%emt 0:01:16]} e3+ {[%emt 0:00:59]} 45. Ke2 {[%emt 0:00:33]} Rc1 {[%emt 0:01:07]} 46. Nxe3 {[%emt 0:00:26]} Rxc6 {[%emt 0:00:27]} 47. Rd4+ {[%emt 0:00:36]} Ke5 {[%emt 0:00:41]} 48. Kd3 {[%emt 0:00:33]} Rc5 {[%emt 0:01:42]} 49. g4 {[%emt 0:00:08]} 1-0

[Event "56th Rubinstein Memorial A 2020"]
[Site "Polanica Zdroj"]
[Date "2020.08.20"]
[Round "6.15"]
[White "Turski, Bartlomiej"]
[Black "Wisniewski, Michal"]
[Result "1/2-1/2"]
[ECO "A11"]
[WhiteElo "1985"]
[BlackElo "2127"]
[Annotator "ChessBase"]
[PlyCount "53"]
[EventDate "2020.08.15"]
[EventType "swiss"]
[EventCountry "POL"]
[SourceTitle "playchess.com"]
[Source "ChessBase"]
[SourceQuality "1"]
[TimeControl "40/5400+30:1800+30"]

1. e4 {[%emt 0:00:00]} a6 {[%emt 0:12:09]} 2. d4 {[%emt 0:00:04]} g6 {[%emt 0:00:54]} 3. Be3 {[%emt 0:00:38]} Bg7 {[%emt 0:00:06]} 4. Qd2 {[%emt 0:00:21]} d6 {[%emt 0:00:06]} 5. f3 {[%emt 0:03:56]} b5 {[%emt 0:03:04]} 6. a4 {[%emt 0:06:00]} bxa4 {[%emt 0:02:08]} 7. Rxa4 {[%emt 0:00:46]} Nf6 {[%emt 0:02:38]} 8. Bd3 {[%emt 0:02:26]} O-O {[%emt 0:00:17]} 9. Ne2 {[%emt 0:00:35]} Nbd7 {[%emt 0:00:24]} 10. O-O {[%emt 0:01:03]} c5 {[%emt 0:00:07]} 11. c3 {[%emt 0:18:50]} Qc7 {[%emt 0:04:56]} 12. b4 {[%emt 0:14:19]} c4 {[%emt 0:08:20]} 13. Bc2 {[%emt 0:01:12]} a5 {[%emt 0:00:03]} 14. Na3 {[%emt 0:04:04]} Bb7 {[%emt 0:02:30]} 15. bxa5 {[%emt 0:03:33]} d5 {[%emt 0:03:05]} 16. Bf4 {[%emt 0:16:55]} e5 {[%emt 0:10:55]} 17. dxe5 {[%emt 0:04:00]} Nh5 {[%emt 0:00:06]} 18. exd5 {[%emt 0:02:20]} Nxf4 {[%emt 0:02:14]} 19. Qxf4 {[%emt 0:09:00]} Bxe5 {[%emt 0:06:37]} 20. Qxc4 {[%emt 0:00:21]} Bxh2+ {[%emt 0:00:10]} 21. Kh1 {[%emt 0:00:02]} Qe5 {[%emt 0:00:07]} 22. Qh4 {[%emt 0:03:17]} Qxe2 {[%emt 0:00:32]} 23. Re1 Qd2 {[%emt 0:00:02]} 24. Kxh2 {[%emt 0:01:41]} Nc5 {[%emt 0:00:22]} 25. Rc4 {[%emt 0:05:03]} Rxa5 {[%emt 0:00:04]} 26. Rd1 {[%emt 0:00:41]} Qe2 {[%emt 0:00:02]} 27. Re1 {[%emt 0:00:32]} 1/2-1/2

[Event "56th Rubinstein Memorial A 2020"]
[Site "Polanica Zdroj"]
[Date "2020.08.20"]
[Round "6.16"]
[White "Polak, Michal"]
[Black "Poltorak, Sebastian"]
[Result "0-1"]
[ECO "B33"]
[WhiteElo "1878"]
[BlackElo "1974"]
[Annotator "NA"]
[PlyCount "108"]
[EventDate "2020.08.15"]
[EventType "swiss"]
[EventCountry "POL"]
[SourceTitle "playchess.com"]
[Source "ChessBase"]
[SourceQuality "1"]
[TimeControl "40/5400+30:1800+30"]

1. e4 {[%emt 0:00:00]} c5 {[%emt 0:00:00]} 2. Nf3 {[%emt 0:00:02]} Nc6 {[%emt 0:00:00]} 3. d4 {[%emt 0:00:07]} cxd4 {[%emt 0:00:00]} 4. Nxd4 {[%emt 0:00:08]} Nf6 {[%emt 0:00:00]} 5. Nc3 {[%emt 0:00:06]} e5 {[%emt 0:00:00]} 6. Ndb5 {[%emt 0:00:20]} d6 {[%emt 0:00:03]} 7. Bg5 {[%emt 0:01:46]} a6 {[%emt 0:00:06]} 8. Na3 {[%emt 0:00:07]} b5 {[%emt 0:00:06]} 9. Bxf6 {[%emt 0:00:08]} gxf6 {[%emt 0:00:05]} 10. Nd5 {[%emt 0:00:15]} f5 {[%emt 0:00:08]} 11. c3 {[%emt 0:00:18]} Bg7 {[%emt 0:00:23]} 12. exf5 {[%emt 0:00:08]} Bxf5 {[%emt 0:00:06]} 13. Nc2 {[%emt 0:00:41]} O-O {[%emt 0:00:10]} 14. Nce3 {[%emt 0:00:05]} Be6 {[%emt 0:00:08]} 15. Bd3 {[%emt 0:00:20]} f5 {[%emt 0:00:06]} 16. O-O {[%emt 0:00:36]} e4 {[%emt 0:09:24]} 17. Nf4 {[%emt 0:00:28]} Bf7 {[%emt 0:02:36]} 18. Bc2 {[%emt 0:00:34]} Qg5 $1 $11 {[%emt 0:02:22]} 19. Nh3 {[%emt 0:08:35]} (19. Qxd6 Ne5) 19... Qg6 {[%emt 0:07:14]} 20. Nf4 {[%emt 0:10:41]} (20. f3 $16) 20... Qh6 {[%emt 0:01:47]} 21. g3 {[%emt 0:11:15]} Ne7 {[%emt 0:04:55]} 22. f3 {[%emt 0:19:01]} Bh5 {[%emt 0:13:48]} 23. Nxh5 {[%emt 0:03:16]} Qxe3+ {[%emt 0:00:10]} 24. Kg2 {[%emt 0:05:00]} d5 {[%emt 0:01:08]} 25. Nxg7 {[%emt 0:03:25]} Kxg7 {[%emt 0:00:06]} 26. Qc1 {[%emt 0:04:57]} Qxc1 {[%emt 0:02:35]} 27. Raxc1 {[%emt 0:00:42]} Rac8 {[%emt 0:04:37]} 28. fxe4 {[%emt 0:02:12]} fxe4 {[%emt 0:01:29]} 29. Rxf8 {[%emt 0:00:41]} Rxf8 {[%emt 0:00:11]} 30. Re1 {[%emt 0:03:16]} Rc8 {[%emt 0:01:47]} 31. Bb3 {[%emt 0:01:42]} Kf6 {[%emt 0:00:30]} 32. Rf1+ {[%emt 0:01:30]} Ke5 {[%emt 0:04:45]} 33. Rf7 {[%emt 0:00:48]} Nf5 {[%emt 0:01:32]} 34. Rd7 {[%emt 0:03:27]} Rc5 {[%emt 0:01:11]} 35. Rxh7 {[%emt 0:03:01]} b4 {[%emt 0:01:32]} 36. Rh5 {[%emt 0:03:44]} bxc3 {[%emt 0:01:14]} 37. bxc3 {[%emt 0:00:34]} Kf6 {[%emt 0:01:30]} 38. Kf2 {[%emt 0:02:54]} Rxc3 {[%emt 0:01:26]} 39. Bxd5 {[%emt 0:00:54]} e3+ {[%emt 0:00:12]} 40. Kf1 {[%emt 0:00:00]} Rc1+ {[%emt 0:00:00]} 41. Ke2 {[%emt 0:16:19]} Rc2+ {[%emt 0:00:43]} 42. Kf1 {[%emt 0:13:16]} Nd4 {[%emt 0:00:54]} 43. Rh6+ {[%emt 0:05:22]} Ke5 {[%emt 0:04:18]} 44. Rh5+ {[%emt 0:04:46]} Kd6 {[%emt 0:00:07]} 45. Bb3 {[%emt 0:03:16]} Rc1+ {[%emt 0:00:21]} 46. Kg2 {[%emt 0:00:12]} e2 {[%emt 0:00:26]} 47. Rh6+ {[%emt 0:00:18]} Kc5 {[%emt 0:00:34]} 48. Rh5+ {[%emt 0:00:22]} Kb4 {[%emt 0:00:12]} 49. Re5 {[%emt 0:00:35]} e1=Q {[%emt 0:00:09]} 50. Rxe1 {[%emt 0:00:09]} Rxe1 {[%emt 0:00:03]} 51. h4 {[%emt 0:00:20]} Nxb3 {[%emt 0:00:10]} 52. axb3 {[%emt 0:00:09]} Kxb3 {[%emt 0:00:18]} 53. h5 {[%emt 0:00:15]} a5 {[%emt 0:00:17]} 54. g4 {[%emt 0:00:18]} a4 {[%emt 0:00:07]} 0-1

[Event "56th Rubinstein Memorial A 2020"]
[Site "Polanica Zdroj"]
[Date "2020.08.20"]
[Round "6.17"]
[White "Luberanski, Jakub"]
[Black "Kowalczyk, Wojciech"]
[Result "1-0"]
[ECO "E97"]
[WhiteElo "2146"]
[BlackElo "1873"]
[Annotator "ChessBase"]
[PlyCount "81"]
[EventDate "2020.08.15"]
[EventType "swiss"]
[EventCountry "POL"]
[SourceTitle "playchess.com"]
[Source "ChessBase"]
[SourceQuality "1"]
[TimeControl "40/5400+30:1800+30"]

1. d4 {[%emt 0:00:00]} Nf6 {[%emt 0:00:11]} 2. c4 {[%emt 0:00:00]} g6 {[%emt 0:00:06]} 3. Nc3 {[%emt 0:00:00]} Bg7 {[%emt 0:00:02]} 4. e4 {[%emt 0:00:00]} d6 {[%emt 0:00:03]} 5. Nf3 {[%emt 0:00:00]} O-O {[%emt 0:00:08]} 6. Be2 {[%emt 0:00:02]} e5 {[%emt 0:00:23]} 7. O-O {[%emt 0:00:07]} Nc6 {[%emt 0:00:55]} 8. d5 {[%emt 0:00:14]} Ne7 {[%emt 0:00:10]} 9. Nd2 {[%emt 0:00:11]} Nd7 {[%emt 0:03:17]} 10. b4 {[%emt 0:00:21]} a5 {[%emt 0:02:30]} 11. bxa5 {[%emt 0:03:48]} Rxa5 {[%emt 0:00:22]} 12. Nb3 {[%emt 0:00:20]} Ra8 {[%emt 0:01:08]} 13. Be3 {[%emt 0:01:13]} f5 {[%emt 0:00:56]} 14. f3 {[%emt 0:00:13]} f4 {[%emt 0:18:45]} 15. Bf2 {[%emt 0:00:14]} b6 {[%emt 0:00:13]} 16. a4 {[%emt 0:03:02]} Nc5 {[%emt 0:00:50]} 17. a5 {[%emt 0:09:00]} Nxb3 {[%emt 0:14:45]} 18. Qxb3 {[%emt 0:00:07]} bxa5 {[%emt 0:00:06]} 19. c5 {[%emt 0:02:28]} g5 {[%emt 0:22:32]} 20. Rfb1 {[%emt 0:09:54]} Rf6 {[%emt 0:02:04]} 21. cxd6 {[%emt 0:02:50]} cxd6 {[%emt 0:00:33]} 22. Qb6 {[%emt 0:00:44]} Qe8 {[%emt 0:00:33]} 23. Rxa5 {[%emt 0:01:49]} Rxa5 {[%emt 0:00:22]} 24. Qxa5 {[%emt 0:00:01]} h5 {[%emt 0:25:20]} 25. Rb8 {[%emt 0:04:53]} g4 {[%emt 0:00:53]} 26. Bh4 {[%emt 0:03:06]} g3 {[%emt 0:01:49]} 27. h3 {[%emt 0:01:45]} Rf8 {[%emt 0:00:10]} 28. Ba6 {[%emt 0:05:47]} Bf6 {[%emt 0:02:31]} 29. Bxf6 {[%emt 0:00:22]} Rxf6 {[%emt 0:00:07]} 30. Qc7 {[%emt 0:00:30]} Rf8 {[%emt 0:01:02]} 31. Nb5 {[%emt 0:05:13]} Qd7 {[%emt 0:00:47]} 32. Qxd7 {[%emt 0:02:51]} Bxd7 {[%emt 0:00:01]} 33. Rxf8+ {[%emt 0:00:06]} Kxf8 {[%emt 0:00:04]} 34. Nxd6 {[%emt 0:00:03]} Ba4 {[%emt 0:01:27]} 35. Kf1 {[%emt 0:04:45]} Ng6 {[%emt 0:00:57]} 36. Bc8 {[%emt 0:04:56]} Nh4 {[%emt 0:00:50]} 37. Kg1 {[%emt 0:01:55]} Bc2 {[%emt 0:00:58]} 38. Nb7 {[%emt 0:04:51]} Ke8 {[%emt 0:00:28]} 39. d6 {[%emt 0:01:18]} Ba4 {[%emt 0:00:24]} 40. Nc5 {[%emt 0:00:00]} Kd8 {[%emt 0:00:00]} 41. d7 {[%emt 0:01:22]} 1-0

[Event "56th Rubinstein Memorial A 2020"]
[Site "Polanica Zdroj"]
[Date "2020.08.20"]
[Round "6.18"]
[White "Vanduyfhuys, Daria"]
[Black "Kazmierowski, Tymon"]
[Result "1-0"]
[ECO "E17"]
[WhiteElo "1985"]
[BlackElo "1844"]
[Annotator "NA"]
[PlyCount "53"]
[EventDate "2020.08.15"]
[EventType "swiss"]
[EventCountry "POL"]
[SourceTitle "playchess.com"]
[Source "ChessBase"]
[SourceQuality "1"]
[TimeControl "40/5400+30:1800+30"]

1. d4 {[%emt 0:00:00]} Nf6 {[%emt 0:00:00]} 2. c4 {[%emt 0:00:00]} e6 {[%emt 0:00:00]} 3. Nf3 {[%emt 0:00:00]} b6 {[%emt 0:00:00]} 4. Nc3 {[%emt 0:00:15]} Bb7 {[%emt 0:00:29]} 5. g3 {[%emt 0:00:40]} Be7 {[%emt 0:01:34]} 6. Bg2 {[%emt 0:00:12]} Ne4 {[%emt 0:01:10]} 7. Qd3 {[%emt 0:03:49]} f5 {[%emt 0:02:03]} 8. O-O {[%emt 0:00:14]} Nxc3 {[%emt 0:02:02]} 9. Qxc3 {[%emt 0:01:10]} O-O {[%emt 0:00:25]} 10. b3 {[%emt 0:02:18]} Bf6 {[%emt 0:02:09]} 11. Bb2 {[%emt 0:00:22]} c5 {[%emt 0:03:24] E19: Queen's Indian: Old Main Line with 7...Ne4 8 Qc2 Nxc3 8 Qxc3.} 12. Qd2 {[%emt 0:00:42]} Nc6 {[%emt 0:21:47]} 13. dxc5 {[%emt 0:02:03]} Bxb2 {[%emt 0:02:07]} 14. Qxb2 {[%emt 0:00:06]} bxc5 {[%emt 0:00:06]} 15. Rfd1 {[%emt 0:03:43] [#]} Qc7 $146 {[%emt 0:01:28]} ({Predecessor:} 15... d6 16. Qd2 e5 17. Qxd6 Qxd6 18. Rxd6 e4 19. Ng5 Rad8 20. Rxd8 Rxd8 21. Ne6 Rd2 22. Nxc5 {1-0 (82) Podgorny,J-Gawlikowski,S Karlovy Vary 1948}) 16. Rd2 {[%emt 0:02:16]} Rad8 {[%emt 0:01:15]} 17. Rad1 {[%emt 0:00:19]} Ba8 {[%emt 0:09:55]} 18. Qc3 {[%emt 0:11:12]} e5 {[%emt 0:01:50]} 19. Ne1 {[%emt 0:01:56]} e4 {[%emt 0:07:23]} 20. Nc2 {[%emt 0:00:46]} Ne5 {[%emt 0:01:46]} 21. Ne3 {[%emt 0:01:22]} g6 {[%emt 0:11:12]} 22. Nd5 {[%emt 0:07:58]} Bxd5 {[%emt 0:01:13]} 23. Rxd5 {[%emt 0:00:05]} Rfe8 $14 {[%emt 0:00:58]} 24. Qd2 {[%emt 0:03:49]} Re7 {[%emt 0:02:55]} 25. Rd6 {[%emt 0:11:05]} Nc6 {[%emt 0:13:44]} 26. Qd5+ {[%emt 0:01:35]} Kh8 {[%emt 0:00:58]} 27. Rxc6 {[%emt 0:01:15]} 1-0